{"text_format":"3","workbook":"xlsx","n_sheets":1,"sheets":["РАЗХОДИ ЗА ПРЕМОДЕЛИРАНЕ"],"not_rendered":{"images":2,"defined_names":4},"read":"whole","date_system":"1900"}

{"sheet":"РАЗХОДИ ЗА ПРЕМОДЕЛИРАНЕ","index":0,"n_rows":28,"n_cols":8,"rows_kept":28,"merged":[[25,1,25,5],[26,1,26,5],[27,1,27,5]]}
[null,"РАБОТЕН ЛИСТ \"РАЗХОДИ ЗА ПРЕМОДЕЛИРАНЕ НА КУХНЯ\""]
[]
[null,"Категория","Елементи","Количество","Приблизителен разход","Действителен разход","Общ приблизителен разход","Общ действителен разход"]
[null,"Шкафове","Долни шкафове: модулни стандартни (количество в линейни фута)",25,{"v":5,"d":"5.00 лв."},null,{"$f":"Данни[[#This Row],[Количество]]*Данни[[#This Row],[Приблизителен разход]]","v":{"v":125,"d":"125 лв."}},{"$f":"Данни[[#This Row],[Количество]]*Данни[[#This Row],[Действителен разход]]","v":{"v":0,"d":"0 лв."}}]
[null,"Шкафове","Горни шкафове: модулни стандартни (количество в линейни фута)",25,{"v":3.5,"d":"3.50 лв."},null,{"$f":"Данни[[#This Row],[Количество]]*Данни[[#This Row],[Приблизителен разход]]","v":{"v":87.5,"d":"88 лв."}},{"$f":"Данни[[#This Row],[Количество]]*Данни[[#This Row],[Действителен разход]]","v":{"v":0,"d":"0 лв."}}]
[null,"Уреди за почистване","Съдомиялна: стандартна",1,{"v":250,"d":"250.00 лв."},null,{"$f":"Данни[[#This Row],[Количество]]*Данни[[#This Row],[Приблизителен разход]]","v":{"v":250,"d":"250 лв."}},{"$f":"Данни[[#This Row],[Количество]]*Данни[[#This Row],[Действителен разход]]","v":{"v":0,"d":"0 лв."}}]
[null,"Уреди за почистване","Система за изхвърляне на боклука: стандартна",1,{"v":175,"d":"175.00 лв."},null,{"$f":"Данни[[#This Row],[Количество]]*Данни[[#This Row],[Приблизителен разход]]","v":{"v":175,"d":"175 лв."}},{"$f":"Данни[[#This Row],[Количество]]*Данни[[#This Row],[Действителен разход]]","v":{"v":0,"d":"0 лв."}}]
[null,"Уреди за готвене","Готварска печка: стандартна за плъзгане",1,{"v":375,"d":"375.00 лв."},null,{"$f":"Данни[[#This Row],[Количество]]*Данни[[#This Row],[Приблизителен разход]]","v":{"v":375,"d":"375 лв."}},{"$f":"Данни[[#This Row],[Количество]]*Данни[[#This Row],[Действителен разход]]","v":{"v":0,"d":"0 лв."}}]
[null,"Уреди за готвене","Микровълнова печка: стандартна",1,{"v":300,"d":"300.00 лв."},null,{"$f":"Данни[[#This Row],[Количество]]*Данни[[#This Row],[Приблизителен разход]]","v":{"v":300,"d":"300 лв."}},{"$f":"Данни[[#This Row],[Количество]]*Данни[[#This Row],[Действителен разход]]","v":{"v":0,"d":"0 лв."}}]
[null,"Плотове","Плътна повърхност (количество в линейни фута)",23,{"v":10,"d":"10.00 лв."},null,{"$f":"Данни[[#This Row],[Количество]]*Данни[[#This Row],[Приблизителен разход]]","v":{"v":230,"d":"230 лв."}},{"$f":"Данни[[#This Row],[Количество]]*Данни[[#This Row],[Действителен разход]]","v":{"v":0,"d":"0 лв."}}]
[null,"Врати","Интериорни: плътна сърцевина с фурнир",1,{"v":65,"d":"65.00 лв."},null,{"$f":"Данни[[#This Row],[Количество]]*Данни[[#This Row],[Приблизителен разход]]","v":{"v":65,"d":"65 лв."}},{"$f":"Данни[[#This Row],[Количество]]*Данни[[#This Row],[Действителен разход]]","v":{"v":0,"d":"0 лв."}}]
[null,"Екстри","Екстри: стандартен проточен бойлер",1,{"v":120,"d":"120.00 лв."},null,{"$f":"Данни[[#This Row],[Количество]]*Данни[[#This Row],[Приблизителен разход]]","v":{"v":120,"d":"120 лв."}},{"$f":"Данни[[#This Row],[Количество]]*Данни[[#This Row],[Действителен разход]]","v":{"v":0,"d":"0 лв."}}]
[null,"Екстри","Екстри: диспенсер за сапун",1,{"v":40,"d":"40.00 лв."},null,{"$f":"Данни[[#This Row],[Количество]]*Данни[[#This Row],[Приблизителен разход]]","v":{"v":40,"d":"40 лв."}},{"$f":"Данни[[#This Row],[Количество]]*Данни[[#This Row],[Действителен разход]]","v":{"v":0,"d":"0 лв."}}]
[null,"Смесители","Смесител: стандартен с лост",1,{"v":130,"d":"130.00 лв."},null,{"$f":"Данни[[#This Row],[Количество]]*Данни[[#This Row],[Приблизителен разход]]","v":{"v":130,"d":"130 лв."}},{"$f":"Данни[[#This Row],[Количество]]*Данни[[#This Row],[Действителен разход]]","v":{"v":0,"d":"0 лв."}}]
[null,"Подова настилка","Ламинат (количество в квадратни фута)",165,{"v":3.5,"d":"3.50 лв."},null,{"$f":"Данни[[#This Row],[Количество]]*Данни[[#This Row],[Приблизителен разход]]","v":{"v":577.5,"d":"578 лв."}},{"$f":"Данни[[#This Row],[Количество]]*Данни[[#This Row],[Действителен разход]]","v":{"v":0,"d":"0 лв."}}]
[null,"Уреди за пране","Пералня: стандартна",1,{"v":500,"d":"500.00 лв."},null,{"$f":"Данни[[#This Row],[Количество]]*Данни[[#This Row],[Приблизителен разход]]","v":{"v":500,"d":"500 лв."}},{"$f":"Данни[[#This Row],[Количество]]*Данни[[#This Row],[Действителен разход]]","v":{"v":0,"d":"0 лв."}}]
[null,"Уреди за пране","Сушилня: стандартна",1,{"v":375,"d":"375.00 лв."},null,{"$f":"Данни[[#This Row],[Количество]]*Данни[[#This Row],[Приблизителен разход]]","v":{"v":375,"d":"375 лв."}},{"$f":"Данни[[#This Row],[Количество]]*Данни[[#This Row],[Действителен разход]]","v":{"v":0,"d":"0 лв."}}]
[null,"Осветление","Осветление: вградено",4,{"v":35,"d":"35.00 лв."},null,{"$f":"Данни[[#This Row],[Количество]]*Данни[[#This Row],[Приблизителен разход]]","v":{"v":140,"d":"140 лв."}},{"$f":"Данни[[#This Row],[Количество]]*Данни[[#This Row],[Действителен разход]]","v":{"v":0,"d":"0 лв."}}]
[null,"Хладилници","Хладилник: луксозен самостоятелен",1,{"v":1200,"d":"1,200.00 лв."},null,{"$f":"Данни[[#This Row],[Количество]]*Данни[[#This Row],[Приблизителен разход]]","v":{"v":1200,"d":"1,200 лв."}},{"$f":"Данни[[#This Row],[Количество]]*Данни[[#This Row],[Действителен разход]]","v":{"v":0,"d":"0 лв."}}]
[null,"Мивки","Луксозна двойна от неръждаема стомана",1,{"v":125,"d":"125.00 лв."},null,{"$f":"Данни[[#This Row],[Количество]]*Данни[[#This Row],[Приблизителен разход]]","v":{"v":125,"d":"125 лв."}},{"$f":"Данни[[#This Row],[Количество]]*Данни[[#This Row],[Действителен разход]]","v":{"v":0,"d":"0 лв."}}]
[null,"Вентилация","Аспиратор: стандартен с ръкав",1,{"v":180,"d":"180.00 лв."},null,{"$f":"Данни[[#This Row],[Количество]]*Данни[[#This Row],[Приблизителен разход]]","v":{"v":180,"d":"180 лв."}},{"$f":"Данни[[#This Row],[Количество]]*Данни[[#This Row],[Действителен разход]]","v":{"v":0,"d":"0 лв."}}]
[null,"Стени","Заден панел (количество в квадратни фута)",70,{"v":2,"d":"2.00 лв."},null,{"$f":"Данни[[#This Row],[Количество]]*Данни[[#This Row],[Приблизителен разход]]","v":{"v":140,"d":"140 лв."}},{"$f":"Данни[[#This Row],[Количество]]*Данни[[#This Row],[Действителен разход]]","v":{"v":0,"d":"0 лв."}}]
[null,"Прозорци","Плъзгащи",2,{"v":120,"d":"120.00 лв."},null,{"$f":"Данни[[#This Row],[Количество]]*Данни[[#This Row],[Приблизителен разход]]","v":{"v":240,"d":"240 лв."}},{"$f":"Данни[[#This Row],[Количество]]*Данни[[#This Row],[Действителен разход]]","v":{"v":0,"d":"0 лв."}}]
[null,"Други",{"$nulls":4},{"$f":"Данни[[#This Row],[Количество]]*Данни[[#This Row],[Приблизителен разход]]","v":{"v":0,"d":"0 лв."}},{"$f":"Данни[[#This Row],[Количество]]*Данни[[#This Row],[Действителен разход]]","v":{"v":0,"d":"0 лв."}}]
[null,"Общо",null,null,{"$f":"SUBTOTAL(109,Данни[Приблизителен разход])","v":{"v":4014,"d":"4,014.00 лв."}},{"$f":"SUBTOTAL(109,Данни[Действителен разход])","v":{"v":0,"d":"0.00 лв."}},{"$f":"SUBTOTAL(109,Данни[Общ приблизителен разход])","v":{"v":5375,"d":"5,375.00 лв."}},{"$f":"SUBTOTAL(109,Данни[Общ действителен разход])","v":{"v":0,"d":"0.00 лв."}}]
[null,"Междинна сума",{"$nulls":4},{"$f":"SUBTOTAL(109,Данни[Общ приблизителен разход])","v":{"v":5375,"d":"5,375.00 лв."}},{"$f":"SUBTOTAL(109,Данни[Общ действителен разход])","v":{"v":0,"d":"0.00 лв."}}]
[null,"Неочаквани разходи – плюс 30%",{"$nulls":4},{"$f":"G26*0.3","v":{"v":1612.5,"d":"1,612.50 лв."}},{"$f":"H26*0.3","v":{"v":0,"d":"0.00 лв."}}]
[null,"Общо",{"$nulls":4},{"$f":"SUM(G26:G27)","v":{"v":6987.5,"d":"6,987.50 лв."}},{"$f":"SUM(H26:H27)","v":{"v":0,"d":"0.00 лв."}}]